[Event "Early-Titled-Tuesday-Blitz-December-26-2023"]
[Site "Chess.com"]
[Date "2023.12.26"]
[Round "2"]
[White "Dewarfd"]
[Black "DucksParadise"]
[Result "0-1"]
[WhiteElo "2099"]
[BlackElo "2475"]
[TimeControl "180+1"]
[EndTime "8:15:33 PST"]
[Termination "DucksParadise won by resignation"]

1. d4 {[%clk 0:02:59.7]} 1... f5 {[%clk 0:02:58.7]} 2. e3 {[%clk 0:02:59.6]}
2... Nf6 {[%clk 0:02:58.3]} 3. Nf3 {[%clk 0:03:00]} 3... g6 {[%clk 0:02:58.3]}
4. Be2 {[%clk 0:03:00.6]} 4... Bg7 {[%clk 0:02:58.9]} 5. O-O {[%clk 0:02:58.9]}
5... O-O {[%clk 0:02:59.8]} 6. c4 {[%clk 0:02:58.7]} 6... d6 {[%clk 0:03:00.1]}
7. b4 {[%clk 0:02:57.9]} 7... e5 {[%clk 0:02:58.6]} 8. dxe5 {[%clk 0:02:54.9]}
8... dxe5 {[%clk 0:02:59.5]} 9. Qxd8 {[%clk 0:02:42.7]} 9... Rxd8 {[%clk
0:03:00.4]} 10. Bb2 {[%clk 0:02:39.6]} 10... e4 {[%clk 0:02:55.4]} 11. Ng5
{[%clk 0:02:23.6]} 11... a5 {[%clk 0:02:49.4]} 12. a3 {[%clk 0:02:22]} 12...
axb4 {[%clk 0:02:47.9]} 13. axb4 {[%clk 0:02:22.9]} 13... Rxa1 {[%clk
0:02:48.1]} 14. Bxa1 {[%clk 0:02:23.8]} 14... h6 {[%clk 0:02:42.6]} 15. Nh3
{[%clk 0:02:22.8]} 15... Na6 {[%clk 0:02:40.1]} 16. Bc3 {[%clk 0:02:20.3]} 16...
Nd7 {[%clk 0:02:25.1]} 17. b5 {[%clk 0:02:11.3]} 17... Nac5 {[%clk 0:02:23.4]}
18. Nf4 {[%clk 0:02:10.8]} 18... Kf7 {[%clk 0:02:16.2]} 19. Nd5 {[%clk
0:02:05.9]} 19... Bxc3 {[%clk 0:02:10.3]} 20. Nbxc3 {[%clk 0:02:05.7]} 20... c6
{[%clk 0:02:09.4]} 21. bxc6 {[%clk 0:02:05.6]} 21... bxc6 {[%clk 0:02:10.3]} 22.
Nb4 {[%clk 0:02:02]} 22... Ne5 {[%clk 0:02:10.1]} 23. Rd1 {[%clk 0:01:56.3]}
23... Rxd1+ {[%clk 0:02:08.1]} 24. Nxd1 {[%clk 0:01:54.5]} 24... Be6 {[%clk
0:02:05.3]} 25. Nb2 {[%clk 0:01:53.3]} 25... Ke7 {[%clk 0:02:00]} 26. Kf1 {[%clk
0:01:53.2]} 26... Kd6 {[%clk 0:01:59.4]} 27. Ke1 {[%clk 0:01:53.4]} 27... Nb3
{[%clk 0:01:49.7]} 28. Bd1 {[%clk 0:01:27.8]} 28... Na5 {[%clk 0:01:47.4]} 29.
Be2 {[%clk 0:01:23.2]} 29... Nexc4 {[%clk 0:01:44.6]} 30. Nxc4+ {[%clk
0:01:21.7]} 30... Nxc4 {[%clk 0:01:40.2]} 31. Bxc4 {[%clk 0:01:17.7]} 31... Bxc4
{[%clk 0:01:41.1]} 32. Kd2 {[%clk 0:01:16.6]} 32... Bf1 {[%clk 0:01:38.5]} 33.
g3 {[%clk 0:01:16.8]} 33... c5 {[%clk 0:01:36.3]} 34. Nc2 {[%clk 0:01:13.6]}
34... Ke5 {[%clk 0:01:32]} 35. Kc3 {[%clk 0:01:13.2]} 35... Kf6 {[%clk
0:01:31.5]} 36. h4 {[%clk 0:01:12.3]} 36... g5 {[%clk 0:01:31.5]} 37. hxg5+
{[%clk 0:01:12.4]} 37... Kxg5 {[%clk 0:01:31.4]} 38. Kd2 {[%clk 0:01:11.5]}
38... Kg4 {[%clk 0:01:31]} 39. Ke1 {[%clk 0:01:10.7]} 39... Bd3 {[%clk
0:01:30.9]} 40. Na1 {[%clk 0:01:08.7]} 40... c4 {[%clk 0:01:29.7]} 41. Kd2
{[%clk 0:00:58.9]} 41... Kf3 {[%clk 0:01:29.3]} 42. Ke1 {[%clk 0:00:58.5]} 42...
h5 {[%clk 0:01:29.2]} 43. g4 {[%clk 0:00:47.5]} 43... hxg4 {[%clk 0:01:30.1]}
44. Nc2 {[%clk 0:00:47.5]} 44... Bxc2 {[%clk 0:01:29.7]} 45. Kd2 {[%clk
0:00:47.9]} 45... Bd3 {[%clk 0:01:29.3]} 0-1

[Event "Early-Titled-Tuesday-Blitz-December-26-2023"]
[Site "Chess.com"]
[Date "2023.12.26"]
[Round "2"]
[White "Alexei_Gubajdullin"]
[Black "Hikaru"]
[Result "0-1"]
[WhiteElo "2661"]
[BlackElo "3221"]
[TimeControl "180+1"]
[EndTime "8:15:34 PST"]
[Termination "Hikaru won by resignation"]

1. d4 {[%clk 0:03:00.2]} 1... g6 {[%clk 0:02:59.1]} 2. Nf3 {[%clk 0:03:00.1]}
2... Bg7 {[%clk 0:02:59.5]} 3. Bf4 {[%clk 0:03:00.1]} 3... c5 {[%clk 0:02:56.5]}
4. e3 {[%clk 0:02:59.9]} 4... Qb6 {[%clk 0:02:56.1]} 5. Nc3 {[%clk 0:02:59.2]}
5... cxd4 {[%clk 0:02:54.6]} 6. exd4 {[%clk 0:02:59.2]} 6... d6 {[%clk
0:02:54.3]} 7. a3 {[%clk 0:02:57.3]} 7... Bg4 {[%clk 0:02:53.2]} 8. Bb5+ {[%clk
0:02:50.1]} 8... Nc6 {[%clk 0:02:51.8]} 9. Nd5 {[%clk 0:02:48.3]} 9... Qd8
{[%clk 0:02:50.9]} 10. c3 {[%clk 0:02:38.9]} 10... a6 {[%clk 0:02:47.2]} 11. Ba4
{[%clk 0:02:29.6]} 11... b5 {[%clk 0:02:31.3]} 12. Bc2 {[%clk 0:02:29]} 12...
Nf6 {[%clk 0:02:29.4]} 13. Nxf6+ {[%clk 0:02:28.1]} 13... Bxf6 {[%clk
0:02:30.3]} 14. Bh6 {[%clk 0:02:28]} 14... Qd7 {[%clk 0:02:25.8]} 15. O-O {[%clk
0:02:24]} 15... g5 {[%clk 0:02:18.4]} 16. Qd3 {[%clk 0:02:05.9]} 16... Rg8
{[%clk 0:02:14.1]} 17. d5 {[%clk 0:01:55.3]} 17... Ne5 {[%clk 0:01:56.3]} 18.
Nxe5 {[%clk 0:01:54.6]} 18... dxe5 {[%clk 0:01:57.2]} 19. a4 {[%clk 0:00:42]}
19... Rg6 {[%clk 0:01:48.1]} 20. axb5 {[%clk 0:00:41.1]} 20... Rxh6 {[%clk
0:01:48]} 21. Rxa6 {[%clk 0:00:40.8]} 21... Rd8 {[%clk 0:01:46.3]} 22. c4 {[%clk
0:00:38.6]} 22... Qc7 {[%clk 0:01:41.3]} 23. b6 {[%clk 0:00:34.6]} 23... Qb8
{[%clk 0:01:39.3]} 24. Qg3 {[%clk 0:00:22]} 24... Bc8 {[%clk 0:01:38.7]} 25.
Ba4+ {[%clk 0:00:19.6]} 25... Kf8 {[%clk 0:01:38.9]} 26. b7 {[%clk 0:00:15.5]}
26... Qxb7 {[%clk 0:01:37.7]} 27. Bb5 {[%clk 0:00:15]} 27... Bd7 {[%clk
0:01:35.2]} 28. Rfa1 {[%clk 0:00:08.4]} 28... Bxb5 {[%clk 0:01:35]} 29. cxb5
{[%clk 0:00:08.7]} 29... Qxb5 {[%clk 0:01:35.9]} 30. Ra8 {[%clk 0:00:08.8]}
30... Qxd5 {[%clk 0:01:35.9]} 31. Rxd8+ {[%clk 0:00:07.6]} 31... Qxd8 {[%clk
0:01:36.8]} 32. h4 {[%clk 0:00:07.9]} 32... Rxh4 {[%clk 0:01:36.5]} 33. b3
{[%clk 0:00:07]} 33... Kg7 {[%clk 0:01:36.3]} 0-1

[Event "Early-Titled-Tuesday-Blitz-December-26-2023"]
[Site "Chess.com"]
[Date "2023.12.26"]
[Round "2"]
[White "Yurasova_Daria"]
[Black "Aradhya2000"]
[Result "0-1"]
[WhiteElo "2463"]
[BlackElo "2715"]
[TimeControl "180+1"]
[EndTime "8:15:34 PST"]
[Termination "Aradhya2000 won by resignation"]

1. d4 {[%clk 0:03:00.9]} 1... d5 {[%clk 0:02:59.8]} 2. Nf3 {[%clk 0:03:01]} 2...
Nf6 {[%clk 0:02:59.6]} 3. c4 {[%clk 0:03:01.1]} 3... e6 {[%clk 0:02:59.3]} 4. g3
{[%clk 0:02:59.9]} 4... dxc4 {[%clk 0:02:58.7]} 5. Bg2 {[%clk 0:02:58.9]} 5...
Bd7 {[%clk 0:02:58.8]} 6. O-O {[%clk 0:02:59.8]} 6... Bc6 {[%clk 0:02:58.2]} 7.
Nc3 {[%clk 0:02:58]} 7... Be7 {[%clk 0:02:57.1]} 8. Bg5 {[%clk 0:02:53.9]} 8...
O-O {[%clk 0:02:55.9]} 9. Bxf6 {[%clk 0:02:48]} 9... Bxf6 {[%clk 0:02:56]} 10.
e3 {[%clk 0:02:48.4]} 10... b5 {[%clk 0:02:54.1]} 11. a4 {[%clk 0:02:45.6]}
11... b4 {[%clk 0:02:53.6]} 12. Ne2 {[%clk 0:02:44.8]} 12... Be4 {[%clk
0:02:33.7]} 13. Rc1 {[%clk 0:02:41]} 13... Qd5 {[%clk 0:02:31.6]} 14. Nf4 {[%clk
0:02:38]} 14... Qc6 {[%clk 0:02:31.4]} 15. Nh5 {[%clk 0:02:34.7]} 15... Nd7
{[%clk 0:02:24]} 16. Nxf6+ {[%clk 0:02:33]} 16... gxf6 {[%clk 0:02:24.1]} 17.
Rxc4 {[%clk 0:01:37.9]} 17... Qxc4 {[%clk 0:02:20.1]} 18. Nd2 {[%clk 0:01:30.3]}
18... Bxg2 {[%clk 0:02:14]} 19. Nxc4 {[%clk 0:01:29.3]} 19... Bxf1 {[%clk
0:02:14.1]} 20. Kxf1 {[%clk 0:01:30.2]} 20... f5 {[%clk 0:02:10.1]} 21. Qh5
{[%clk 0:01:27.9]} 21... Kh8 {[%clk 0:02:05.8]} 22. Qh4 {[%clk 0:01:22.1]} 22...
Rae8 {[%clk 0:02:02.9]} 23. Ne5 {[%clk 0:01:18.8]} 23... Nxe5 {[%clk 0:02:02.7]}
24. dxe5 {[%clk 0:01:19.7]} 24... Rg8 {[%clk 0:02:01.1]} 25. Qf6+ {[%clk
0:01:17.4]} 25... Rg7 {[%clk 0:02:01.5]} 26. h4 {[%clk 0:01:18.1]} 26... Kg8
{[%clk 0:02:01.9]} 27. h5 {[%clk 0:01:18.5]} 27... c5 {[%clk 0:01:58.4]} 28. Kg2
{[%clk 0:01:17]} 28... c4 {[%clk 0:01:57.9]} 29. Qh4 {[%clk 0:01:13.4]} 29...
Rg4 {[%clk 0:01:57.1]} 30. Qh1 {[%clk 0:01:07.6]} 30... c3 {[%clk 0:01:57.2]}
31. bxc3 {[%clk 0:01:05.4]} 31... bxc3 {[%clk 0:01:58.1]} 32. Qc1 {[%clk
0:01:05.6]} 32... Rc8 {[%clk 0:01:55.6]} 33. Qc2 {[%clk 0:01:05.6]} 33... h6
{[%clk 0:01:50.8]} 34. f4 {[%clk 0:01:02.1]} 34... a5 {[%clk 0:01:46.1]} 35. Kf3
{[%clk 0:01:02.3]} 35... Kh8 {[%clk 0:01:43.5]} 36. Kf2 {[%clk 0:00:49.9]} 36...
Rgg8 {[%clk 0:01:42.8]} 37. Kf3 {[%clk 0:00:36.9]} 37... Rgd8 {[%clk 0:01:42.2]}
38. Qh2 {[%clk 0:00:24.7]} 38... c2 {[%clk 0:01:41.4]} 39. Qh4 {[%clk
0:00:24.7]} 39... c1=Q {[%clk 0:01:41.5]} 40. Qf6+ {[%clk 0:00:25.2]} 40... Kg8
{[%clk 0:01:41.6]} 0-1

[Event "Early-Titled-Tuesday-Blitz-December-26-2023"]
[Site "Chess.com"]
[Date "2023.12.26"]
[Round "2"]
[White "Eternauta2400"]
[Black "jeetjain"]
[Result "1-0"]
[WhiteElo "2808"]
[BlackElo "2568"]
[TimeControl "180+1"]
[EndTime "8:15:41 PST"]
[Termination "Eternauta2400 won by checkmate"]

1. c4 {[%clk 0:03:00.9]} 1... Nf6 {[%clk 0:02:58.9]} 2. Nc3 {[%clk 0:03:01.2]}
2... g6 {[%clk 0:02:59.2]} 3. g3 {[%clk 0:03:01.4]} 3... Bg7 {[%clk 0:03:00.1]}
4. Bg2 {[%clk 0:03:02.1]} 4... O-O {[%clk 0:03:00.9]} 5. d4 {[%clk 0:03:02.7]}
5... d6 {[%clk 0:03:01.6]} 6. Nf3 {[%clk 0:03:03.3]} 6... c6 {[%clk 0:03:02]} 7.
O-O {[%clk 0:03:03.5]} 7... Nbd7 {[%clk 0:03:02.7]} 8. e4 {[%clk 0:03:03.4]}
8... e5 {[%clk 0:03:02.8]} 9. h3 {[%clk 0:03:02.7]} 9... a5 {[%clk 0:02:57.6]}
10. Be3 {[%clk 0:03:01.5]} 10... Re8 {[%clk 0:02:56.2]} 11. Re1 {[%clk
0:03:01.4]} 11... Qc7 {[%clk 0:02:56.1]} 12. Qc2 {[%clk 0:03:01.4]} 12... b6
{[%clk 0:02:55.9]} 13. d5 {[%clk 0:02:59]} 13... c5 {[%clk 0:02:50.9]} 14. a3
{[%clk 0:02:52.1]} 14... Ba6 {[%clk 0:02:44.7]} 15. Nd2 {[%clk 0:02:51.7]} 15...
Rf8 {[%clk 0:02:37.8]} 16. Nb5 {[%clk 0:02:43.3]} 16... Bxb5 {[%clk 0:02:37.3]}
17. cxb5 {[%clk 0:02:44.2]} 17... Ne8 {[%clk 0:02:34.8]} 18. Nc4 {[%clk
0:02:36.7]} 18... f5 {[%clk 0:02:34]} 19. exf5 {[%clk 0:02:36.8]} 19... gxf5
{[%clk 0:02:33.6]} 20. f4 {[%clk 0:02:36.7]} 20... e4 {[%clk 0:02:21.5]} 21.
Rad1 {[%clk 0:02:35.5]} 21... Nef6 {[%clk 0:02:19.8]} 22. Qe2 {[%clk 0:02:27.7]}
22... Rae8 {[%clk 0:02:18.9]} 23. g4 {[%clk 0:02:26.2]} 23... fxg4 {[%clk
0:02:03.3]} 24. hxg4 {[%clk 0:02:27.1]} 24... Re7 {[%clk 0:01:59.3]} 25. g5
{[%clk 0:02:23.3]} 25... Ne8 {[%clk 0:01:59.5]} 26. Bh3 {[%clk 0:02:09.9]} 26...
Kh8 {[%clk 0:01:57.6]} 27. Qh5 {[%clk 0:02:05.5]} 27... Qd8 {[%clk 0:01:42]} 28.
Kg2 {[%clk 0:02:00.2]} 28... Nc7 {[%clk 0:01:23]} 29. Nxd6 {[%clk 0:01:52.8]}
29... Nb8 {[%clk 0:01:22]} 30. Nf5 {[%clk 0:01:52.2]} 30... Nxb5 {[%clk
0:01:14.7]} 31. Nxe7 {[%clk 0:01:48]} 31... Qxe7 {[%clk 0:01:12.7]} 32. Be6
{[%clk 0:01:25.1]} 32... Nd6 {[%clk 0:01:09.2]} 33. Rh1 {[%clk 0:01:09]} 33...
Bxb2 {[%clk 0:01:08.3]} 34. g6 {[%clk 0:01:06.2]} 34... Kg7 {[%clk 0:00:50.5]}
35. Qh6+ {[%clk 0:00:59]} 35... Kf6 {[%clk 0:00:47.6]} 36. g7# {[%clk
0:00:59.2]} 1-0

[Event "Early-Titled-Tuesday-Blitz-December-26-2023"]
[Site "Chess.com"]
[Date "2023.12.26"]
[Round "2"]
[White "tantaan"]
[Black "campochess"]
[Result "0-1"]
[WhiteElo "2466"]
[BlackElo "2176"]
[TimeControl "180+1"]
[EndTime "8:15:44 PST"]
[Termination "campochess won by resignation"]

1. e4 {[%clk 0:02:27.8]} 1... c5 {[%clk 0:02:33.5]} 2. Nc3 {[%clk 0:02:27.2]}
2... Nc6 {[%clk 0:02:33.1]} 3. Bb5 {[%clk 0:02:26.6]} 3... e6 {[%clk 0:02:28.7]}
4. Bxc6 {[%clk 0:02:23.8]} 4... bxc6 {[%clk 0:02:27.3]} 5. d3 {[%clk 0:02:23.7]}
5... d5 {[%clk 0:02:27.3]} 6. Bd2 {[%clk 0:02:18.7]} 6... Nf6 {[%clk 0:02:26.9]}
7. f4 {[%clk 0:02:18.5]} 7... Nd7 {[%clk 0:02:26.4]} 8. Nf3 {[%clk 0:02:18.2]}
8... Be7 {[%clk 0:02:25.9]} 9. O-O {[%clk 0:02:18.5]} 9... O-O {[%clk
0:02:25.2]} 10. b3 {[%clk 0:02:18.9]} 10... f5 {[%clk 0:02:25]} 11. Qe1 {[%clk
0:02:07.2]} 11... Nf6 {[%clk 0:02:23.2]} 12. Rd1 {[%clk 0:02:06.4]} 12... d4
{[%clk 0:02:11.9]} 13. Na4 {[%clk 0:02:04.2]} 13... fxe4 {[%clk 0:02:11.1]} 14.
dxe4 {[%clk 0:02:04.6]} 14... Ba6 {[%clk 0:02:09]} 15. c4 {[%clk 0:02:01.2]}
15... Bc8 {[%clk 0:02:05.6]} 16. e5 {[%clk 0:01:58]} 16... Ng4 {[%clk
0:02:02.7]} 17. Qg3 {[%clk 0:01:54]} 17... Nh6 {[%clk 0:02:01.3]} 18. Ne1 {[%clk
0:01:47.5]} 18... Nf5 {[%clk 0:02:00.8]} 19. Qf2 {[%clk 0:01:45.3]} 19... h5
{[%clk 0:01:59.9]} 20. Nd3 {[%clk 0:01:45.5]} 20... Bh4 {[%clk 0:01:48.6]} 21.
Qf3 {[%clk 0:01:42.6]} 21... g6 {[%clk 0:01:47]} 22. Qxc6 {[%clk 0:01:37.1]}
22... Bd7 {[%clk 0:01:43.3]} 23. Qxc5 {[%clk 0:01:33.4]} 23... Bxa4 {[%clk
0:01:38.3]} 24. bxa4 {[%clk 0:01:34.3]} 24... Qd7 {[%clk 0:01:32.5]} 25. Qb5
{[%clk 0:01:23.2]} 25... Qc7 {[%clk 0:01:26.5]} 26. c5 {[%clk 0:01:21.2]} 26...
Rab8 {[%clk 0:01:25.2]} 27. Qc4 {[%clk 0:01:21.1]} 27... Qf7 {[%clk 0:01:18.1]}
28. Ne1 {[%clk 0:01:07.2]} 28... Rfc8 {[%clk 0:01:13.8]} 29. Nf3 {[%clk
0:01:07.4]} 29... Be7 {[%clk 0:01:13.6]} 30. c6 {[%clk 0:01:00.3]} 30... Rb6
{[%clk 0:01:11.5]} 31. Nxd4 {[%clk 0:01:00.2]} 31... Nxd4 {[%clk 0:01:08.7]} 32.
Qxd4 {[%clk 0:01:00.6]} 32... Rbxc6 {[%clk 0:01:08.8]} 33. Qxa7 {[%clk
0:00:54.4]} 33... Bc5+ {[%clk 0:01:05.2]} 34. Qxc5 {[%clk 0:00:53.5]} 34... Rxc5
{[%clk 0:01:03.3]} 35. Be3 {[%clk 0:00:54.1]} 35... Rc2 {[%clk 0:01:02.9]} 36.
a5 {[%clk 0:00:51.9]} 36... Qb7 {[%clk 0:01:02.3]} 37. Rf2 {[%clk 0:00:48.4]}
37... Rxf2 {[%clk 0:01:01.7]} 38. Bxf2 {[%clk 0:00:49.3]} 38... Rc2 {[%clk
0:01:00.8]} 0-1

[Event "Early-Titled-Tuesday-Blitz-December-26-2023"]
[Site "Chess.com"]
[Date "2023.12.26"]
[Round "2"]
[White "LeoLV10"]
[Black "Korchmar_Vasiliy"]
[Result "0-1"]
[WhiteElo "2494"]
[BlackElo "2772"]
[TimeControl "180+1"]
[EndTime "8:15:46 PST"]
[Termination "Korchmar_Vasiliy won on time"]

1. e4 {[%clk 0:03:00.9]} 1... c5 {[%clk 0:03:00]} 2. Nf3 {[%clk 0:02:59.2]} 2...
d6 {[%clk 0:03:00.5]} 3. d4 {[%clk 0:02:58.8]} 3... cxd4 {[%clk 0:03:01.4]} 4.
Nxd4 {[%clk 0:02:59.4]} 4... Nf6 {[%clk 0:03:02.1]} 5. Nc3 {[%clk 0:03:00]} 5...
Nc6 {[%clk 0:03:02.8]} 6. Bg5 {[%clk 0:02:59.7]} 6... Bd7 {[%clk 0:03:02.4]} 7.
Qd3 {[%clk 0:02:59]} 7... Rc8 {[%clk 0:03:00.9]} 8. f4 {[%clk 0:02:58.8]} 8...
Nb4 {[%clk 0:02:56.6]} 9. Qd2 {[%clk 0:02:55.2]} 9... Qb6 {[%clk 0:02:57]} 10.
a3 {[%clk 0:02:50.9]} 10... Qxd4 {[%clk 0:02:49.6]} 11. axb4 {[%clk 0:02:49]}
11... Qxb4 {[%clk 0:02:50]} 12. Bxf6 {[%clk 0:02:10.4]} 12... gxf6 {[%clk
0:02:47.6]} 13. Rxa7 {[%clk 0:01:50.1]} 13... Qxb2 {[%clk 0:02:44]} 14. Nd5
{[%clk 0:01:50.1]} 14... e6 {[%clk 0:02:17.4]} 15. Ne3 {[%clk 0:01:00.9]} 15...
d5 {[%clk 0:02:16.2]} 16. c3 {[%clk 0:00:48.6]} 16... Qb1+ {[%clk 0:02:07.8]}
17. Kf2 {[%clk 0:00:43.5]} 17... Bc5 {[%clk 0:02:01.8]} 18. Ra5 {[%clk
0:00:16.1]} 18... Qxe4 {[%clk 0:02:00.3]} 19. Rxc5 {[%clk 0:00:11.8]} 19...
Qxf4+ {[%clk 0:02:00.6]} 20. Ke1 {[%clk 0:00:08.4]} 20... Rxc5 {[%clk
0:02:01.5]} 21. Be2 {[%clk 0:00:07.6]} 21... O-O {[%clk 0:02:01.3]} 22. Rf1
{[%clk 0:00:07.7]} 22... Qg5 {[%clk 0:01:46.8]} 23. g3 {[%clk 0:00:04.7]} 23...
f5 {[%clk 0:01:40.6]} 24. h4 {[%clk 0:00:04.5]} 24... Qg7 {[%clk 0:01:39.2]} 25.
Kf2 {[%clk 0:00:04]} 25... Qxc3 {[%clk 0:01:38.8]} 26. Qd1 {[%clk 0:00:02.9]}
26... Rfc8 {[%clk 0:01:36.9]} 27. Ng2 {[%clk 0:00:02.9]} 27... Qe5 {[%clk
0:01:32.3]} 28. Nf4 {[%clk 0:00:03.4]} 28... Rc2 {[%clk 0:01:31.2]} 29. Qd3
{[%clk 0:00:03.5]} 29... R8c3 {[%clk 0:01:28.8]} 30. Qd1 {[%clk 0:00:02.8]}
30... Bb5 {[%clk 0:01:29.1]} 31. Re1 {[%clk 0:00:02.7]} 31... Qe3+ {[%clk
0:01:26.7]} 32. Kf1 {[%clk 0:00:02.9]} 32... Qxg3 {[%clk 0:01:25.2]} 0-1

[Event "Early-Titled-Tuesday-Blitz-December-26-2023"]
[Site "Chess.com"]
[Date "2023.12.26"]
[Round "2"]
[White "Ajedrez_con_German"]
[Black "AndresDelgado77"]
[Result "1-0"]
[WhiteElo "2596"]
[BlackElo "2351"]
[TimeControl "180+1"]
[EndTime "8:15:51 PST"]
[Termination "Ajedrez_con_German won on time"]

1. Nf3 {[%clk 0:02:59.1]} 1... d5 {[%clk 0:02:52.1]} 2. e3 {[%clk 0:03:00]} 2...
Nf6 {[%clk 0:02:49.9]} 3. b3 {[%clk 0:03:00.6]} 3... Bf5 {[%clk 0:02:48.4]} 4.
Bb2 {[%clk 0:03:00.7]} 4... e6 {[%clk 0:02:48.8]} 5. g3 {[%clk 0:03:01.1]} 5...
h6 {[%clk 0:02:48.3]} 6. Bg2 {[%clk 0:03:00.9]} 6... Nbd7 {[%clk 0:02:47.2]} 7.
O-O {[%clk 0:03:01.8]} 7... Be7 {[%clk 0:02:47]} 8. d3 {[%clk 0:03:02.3]} 8...
O-O {[%clk 0:02:46.2]} 9. Nbd2 {[%clk 0:03:02.6]} 9... c6 {[%clk 0:02:42.6]} 10.
Qe2 {[%clk 0:03:02.5]} 10... Bh7 {[%clk 0:02:42.1]} 11. e4 {[%clk 0:03:02.9]}
11... dxe4 {[%clk 0:02:32.2]} 12. Nxe4 {[%clk 0:03:02.7]} 12... a5 {[%clk
0:02:21.3]} 13. a4 {[%clk 0:03:02.4]} 13... Qb6 {[%clk 0:02:06.8]} 14. Nfd2
{[%clk 0:02:59.3]} 14... Rfd8 {[%clk 0:01:58.3]} 15. Nc4 {[%clk 0:02:59.4]}
15... Qc7 {[%clk 0:01:47.2]} 16. Rfe1 {[%clk 0:02:59.3]} 16... b5 {[%clk
0:01:37.6]} 17. axb5 {[%clk 0:02:40.1]} 17... cxb5 {[%clk 0:01:37.1]} 18. Nxf6+
{[%clk 0:02:39.1]} 18... Bxf6 {[%clk 0:01:36.2]} 19. Bxf6 {[%clk 0:02:39]} 19...
Nxf6 {[%clk 0:01:34.8]} 20. Bxa8 {[%clk 0:02:36.1]} 20... bxc4 {[%clk
0:01:34.9]} 21. Be4 {[%clk 0:02:32.2]} 21... cxd3 {[%clk 0:01:04.8]} 22. cxd3
{[%clk 0:02:32]} 22... Qc3 {[%clk 0:00:51.1]} 23. Qa2 {[%clk 0:02:24.4]} 23...
Bxe4 {[%clk 0:00:35.7]} 24. dxe4 {[%clk 0:02:25.3]} 24... Rd2 {[%clk 0:00:35.6]}
25. Qxa5 {[%clk 0:02:18.2]} 25... Qb2 {[%clk 0:00:19.6]} 26. Rf1 {[%clk
0:02:11.7]} 26... Ng4 {[%clk 0:00:18.2]} 27. Rab1 {[%clk 0:01:51.9]} 27... Qd4
{[%clk 0:00:17.1]} 28. Qa4 {[%clk 0:01:44.8]} 28... Qb6 {[%clk 0:00:10.5]} 29.
Qe8+ {[%clk 0:01:40.7]} 29... Kh7 {[%clk 0:00:09.9]} 30. Qxf7 {[%clk 0:01:41.2]}
30... Ne5 {[%clk 0:00:05]} 31. Qf4 {[%clk 0:01:39.3]} 31... Qd4 {[%clk
0:00:02.2]} 32. Qe3 {[%clk 0:01:30.7]} 32... Qb4 {[%clk 0:00:02.2]} 33. Rbd1
{[%clk 0:01:26.6]} 1-0

[Event "Early-Titled-Tuesday-Blitz-December-26-2023"]
[Site "Chess.com"]
[Date "2023.12.26"]
[Round "2"]
[White "PawnEatingZombie"]
[Black "Road2GM3000"]
[Result "0-1"]
[WhiteElo "2148"]
[BlackElo "2480"]
[TimeControl "180+1"]
[EndTime "8:15:52 PST"]
[Termination "Road2GM3000 won by checkmate"]

1. e4 {[%clk 0:03:00.9]} 1... c5 {[%clk 0:03:00]} 2. c3 {[%clk 0:03:00.5]} 2...
d5 {[%clk 0:03:00]} 3. exd5 {[%clk 0:03:00.4]} 3... Qxd5 {[%clk 0:03:00.7]} 4.
d4 {[%clk 0:03:00.8]} 4... Nf6 {[%clk 0:03:00.9]} 5. Nf3 {[%clk 0:03:00.4]} 5...
Bg4 {[%clk 0:03:01.5]} 6. dxc5 {[%clk 0:02:59.8]} 6... Qxd1+ {[%clk 0:03:00.7]}
7. Kxd1 {[%clk 0:02:59.8]} 7... e6 {[%clk 0:03:01.3]} 8. b4 {[%clk 0:02:58.5]}
8... a5 {[%clk 0:02:55.7]} 9. Bb5+ {[%clk 0:02:40.5]} 9... Nc6 {[%clk
0:02:55.9]} 10. Nd2 {[%clk 0:02:30.3]} 10... O-O-O {[%clk 0:02:49.6]} 11. Bxc6
{[%clk 0:02:28.1]} 11... bxc6 {[%clk 0:02:49.3]} 12. Kc2 {[%clk 0:02:20.4]}
12... Nd5 {[%clk 0:02:45.7]} 13. a3 {[%clk 0:02:06.4]} 13... g6 {[%clk
0:02:44.2]} 14. Nc4 {[%clk 0:01:45.8]} 14... Bf5+ {[%clk 0:02:30.9]} 15. Kb2
{[%clk 0:01:23.2]} 15... Nxc3 {[%clk 0:02:12.9]} 16. Nxa5 {[%clk 0:01:08.1]}
16... Bg7 {[%clk 0:02:09.4]} 17. Kb3 {[%clk 0:01:07.5]} 17... Rd3 {[%clk
0:01:30.6]} 18. Kc4 {[%clk 0:01:06.6]} 18... Nd5 {[%clk 0:01:16.8]} 19. Bd2
{[%clk 0:00:34.9]} 19... Kc7 {[%clk 0:00:42.6]} 20. Rad1 {[%clk 0:00:19.5]}
20... Rxa3 {[%clk 0:00:42.2]} 21. Nd4 {[%clk 0:00:07.9]} 21... Bd3# {[%clk
0:00:41.5]} 0-1

[Event "Early-Titled-Tuesday-Blitz-December-26-2023"]
[Site "Chess.com"]
[Date "2023.12.26"]
[Round "2"]
[White "noblerone"]
[Black "Felix-Rose"]
[Result "1-0"]
[WhiteElo "2521"]
[BlackElo "2252"]
[TimeControl "180+1"]
[EndTime "8:15:57 PST"]
[Termination "noblerone won by resignation"]

1. d4 {[%clk 0:03:00.9]} 1... d5 {[%clk 0:02:59.3]} 2. Nf3 {[%clk 0:02:58.2]}
2... Nf6 {[%clk 0:02:59.5]} 3. Bg5 {[%clk 0:02:57.9]} 3... Ne4 {[%clk
0:02:58.7]} 4. Bf4 {[%clk 0:02:55.4]} 4... c5 {[%clk 0:02:58.6]} 5. e3 {[%clk
0:02:50.8]} 5... Qb6 {[%clk 0:02:56.4]} 6. Nc3 {[%clk 0:02:48.1]} 6... Qxb2
{[%clk 0:02:16.2]} 7. Nxd5 {[%clk 0:02:45.9]} 7... Nc3 {[%clk 0:01:54.6]} 8.
Nc7+ {[%clk 0:02:25.1]} 8... Kd8 {[%clk 0:01:54.4]} 9. Qc1 {[%clk 0:02:18.9]}
9... Qxc1+ {[%clk 0:01:27.2]} 10. Rxc1 {[%clk 0:02:19.8]} 10... e5 {[%clk
0:01:27.7]} 11. Bxe5 {[%clk 0:02:06.1]} 11... Nc6 {[%clk 0:01:27.7]} 12. Nxa8
{[%clk 0:02:05.3]} 12... Nxe5 {[%clk 0:01:23.8]} 13. Nxe5 {[%clk 0:02:05.3]}
13... Be6 {[%clk 0:01:23.7]} 14. Bc4 {[%clk 0:01:30.1]} 14... Bxc4 {[%clk
0:01:20.2]} 15. Nxc4 {[%clk 0:01:31]} 15... cxd4 {[%clk 0:01:20.1]} 16. a3
{[%clk 0:01:13.8]} 16... f6 {[%clk 0:01:08.5]} 17. exd4 {[%clk 0:01:03.4]} 17...
b5 {[%clk 0:01:08.6]} 18. Kd2 {[%clk 0:00:58.2]} 18... Ne4+ {[%clk 0:01:00.1]}
19. Ke3 {[%clk 0:00:58.4]} 19... Nc3 {[%clk 0:00:51.4]} 20. Kd3 {[%clk
0:00:46.1]} 20... Nd5 {[%clk 0:00:32.5]} 21. Ne3 {[%clk 0:00:45.6]} 21... Nxe3
{[%clk 0:00:28.4]} 22. fxe3 {[%clk 0:00:43.1]} 22... Kd7 {[%clk 0:00:22.4]} 23.
Rb1 {[%clk 0:00:41.4]} 23... a6 {[%clk 0:00:22.3]} 1-0